[Event "XVI Memorial Lezcano Montalvo 2024"]
[Site "Gran Canaria"]
[Date "2024.03.29"]
[Round "7.20"]
[White "Marrero Cardenes, Agustin"]
[Black "Arnaiz Yanes, Miguel Angel"]
[Result "1-0"]
[ECO "A51"]
[WhiteElo "2093"]
[BlackElo "1947"]
[Annotator "RC"]
[PlyCount "125"]
[EventDate "2024.03.23"]
[EventType "swiss"]
[EventCountry "ESP"]
[SourceTitle "playchess.com"]
[Source "ChessBase"]
[SourceQuality "1"]
[TimeControl "5400+30"]

1. d4 {[%emt 0:00:03]} Nf6 {[%emt 0:00:11]} 2. c4 {[%emt 0:00:19]} e5 {[%emt 0:00:24]} 3. dxe5 {[%emt 0:00:18]} Ne4 {[%emt 0:00:23]} 4. Nf3 {[%emt 0:01:06]} Nc6 {[%emt 0:00:26]} 5. Nbd2 {[%emt 0:02:31]} Bb4 {[%emt 0:01:02]} 6. a3 {[%emt 0:02:00]} Bxd2+ {[%emt 0:00:27]} 7. Nxd2 {[%emt 0:01:37]} Nxd2 {[%emt 0:01:14]} 8. Bxd2 {[%emt 0:00:10]} Nxe5 {[%emt 0:00:13]} 9. Bc3 {[%emt 0:00:38]} Qe7 {[%emt 0:01:12]} 10. Qd4 {[%emt 0:02:38]} f6 {[%emt 0:00:24]} 11. O-O-O {[%emt 0:01:31]} d6 {[%emt 0:00:59]} 12. h3 {[%emt 0:05:03]} Nc6 {[%emt 0:00:44]} 13. Qh4 {[%emt 0:02:26]} Bf5 {[%emt 0:02:06]} 14. e4 {[%emt 0:02:42]} Bg6 {[%emt 0:00:31]} 15. f3 {[%emt 0:00:54]} O-O-O {[%emt 0:01:13]} 16. g4 {[%emt 0:06:07]} h5 {[%emt 0:01:20]} 17. Rg1 {[%emt 0:00:41]} Kb8 {[%emt 0:01:26]} 18. Qg3 {[%emt 0:08:55]} h4 {[%emt 0:06:39]} 19. Qf2 {[%emt 0:00:35]} Bf7 {[%emt 0:03:24]} 20. Rg2 {[%emt 0:04:48]} Ne5 {[%emt 0:05:04]} 21. b3 {[%emt 0:00:21]} Nc6 {[%emt 1:11:38]} 22. Qb2 {[%emt 0:03:58]} Ne5 {[%emt 0:00:00]} 23. Qf2 {[%emt 0:07:20]} Nc6 {[%emt 0:00:00]} 24. Bd3 {[%emt 0:01:35]} Ne5 {[%emt 0:00:00]} 25. Bc2 {[%emt 0:00:10]} g5 {[%emt 0:00:00]} 26. f4 {[%emt 0:02:48]} gxf4 {[%emt 0:00:00]} 27. Qxf4 {[%emt 0:00:11]} Bg6 {[%emt 0:00:00]} 28. g5 {[%emt 0:01:49]} fxg5 {[%emt 0:00:00]} 29. Qxg5 {[%emt 0:00:58]} Qxg5+ {[%emt 0:00:00]} 30. Rxg5 {[%emt 0:00:03]} Bf7 {[%emt 0:00:00]} 31. Bxe5 {[%emt 0:01:05]} dxe5 {[%emt 0:00:00]} 32. Rxd8+ {[%emt 0:02:20]} Rxd8 {[%emt 0:00:00]} 33. Rxe5 {[%emt 0:00:12]} Re8 {[%emt 0:00:00]} 34. Rf5 {[%emt 0:06:12]} Be6 {[%emt 0:00:00]} 35. Rf3 {[%emt 0:00:20]} c6 {[%emt 0:00:00]} 36. Kd2 {[%emt 0:00:40]} Rg8 {[%emt 0:00:00]} 37. Ke3 {[%emt 0:01:45]} Rg2 {[%emt 0:00:00]} 38. Bd1 {[%emt 0:02:38]} Rh2 {[%emt 0:00:00]} 39. Rf8+ {[%emt 0:02:34]} Kc7 {[%emt 0:00:00]} 40. Bg4 {[%emt 0:00:08]} Bxg4 {[%emt 0:00:00]} 41. hxg4 {[%emt 0:00:01]} Rg2 {[%emt 0:00:00]} 42. Kf3 {[%emt 0:03:02]} Rg3+ {[%emt 0:00:00]} 43. Kf4 {[%emt 0:00:06]} Rxb3 {[%emt 0:00:00]} 44. g5 {[%emt 0:00:29]} Rb1 {[%emt 0:00:00]} 45. Rh8 {[%emt 0:02:27]} Kd6 {[%emt 0:00:00]} 46. Rh6+ {[%emt 0:02:36]} Ke7 {[%emt 0:00:00]} 47. Rxh4 {[%emt 0:00:22]} Kf7 {[%emt 0:00:00]} 48. Rh6 {[%emt 0:05:07]} a5 {[%emt 0:00:00]} 49. Kf5 {[%emt 0:00:39]} Rf1+ {[%emt 0:00:00]} 50. Ke5 {[%emt 0:00:05]} Kg7 {[%emt 0:00:00]} 51. Rf6 {[%emt 0:02:14]} Rd1 {[%emt 0:00:00]} 52. Rd6 {[%emt 0:00:50]} Ra1 {[%emt 0:00:00]} 53. Kf5 {[%emt 0:03:34]} Rf1+ {[%emt 0:00:00]} 54. Ke6 {[%emt 0:00:06]} Rc1 {[%emt 0:00:00]} 55. e5 {[%emt 0:02:26]} Rxc4 {[%emt 0:00:00]} 56. Kd7 {[%emt 0:00:51]} Re4 {[%emt 0:00:00]} 57. e6 {[%emt 0:00:09]} Kf8 {[%emt 0:00:00]} 58. g6 {[%emt 0:00:13]} b5 {[%emt 0:00:00]} 59. Kd8 {[%emt 0:01:14]} b4 {[%emt 0:00:00]} 60. e7+ {[%emt 0:01:11]} Rxe7 {[%emt 0:00:00]} 61. Rf6+ {[%emt 0:00:17]} Kg7 {[%emt 0:00:00]} 62. Kxe7 {[%emt 0:00:06]} c5 {[%emt 0:00:00]} 63. axb4 {[%emt 0:00:24]} 1-0

[Event "XVI Memorial Lezcano Montalvo 2024"]
[Site "Gran Canaria"]
[Date "2024.03.29"]
[Round "7.21"]
[White "Perez Bolanos, Joel"]
[Black "Sanchez Gonzalez, Diego"]
[Result "1-0"]
[ECO "B21"]
[WhiteElo "2046"]
[BlackElo "1908"]
[Annotator "RC"]
[PlyCount "71"]
[EventDate "2024.03.23"]
[EventType "swiss"]
[EventCountry "ESP"]
[SourceTitle "playchess.com"]
[Source "ChessBase"]
[SourceQuality "1"]
[TimeControl "5400+30"]

1. e4 {[%emt 0:00:02]} c5 {[%emt 0:00:14]} 2. d4 {[%emt 0:00:06]} cxd4 {[%emt 0:00:05]} 3. c3 {[%emt 0:00:04]} dxc3 {[%emt 0:00:27]} 4. Nxc3 {[%emt 0:00:06]} e6 {[%emt 0:00:12]} 5. Nf3 {[%emt 0:00:05]} a6 {[%emt 0:05:27]} 6. Bc4 {[%emt 0:00:15]} Bb4 {[%emt 0:03:19]} 7. O-O {[%emt 0:00:21]} Ne7 {[%emt 1:24:16]} 8. Qe2 {[%emt 0:08:02]} O-O {[%emt 0:00:00]} 9. Rd1 {[%emt 0:01:19]} Qc7 {[%emt 0:00:00]} 10. Bd2 {[%emt 0:03:37]} Nbc6 {[%emt 0:00:00]} 11. Rac1 {[%emt 0:01:42]} Ng6 {[%emt 0:00:00]} 12. Bb3 {[%emt 0:03:24]} Re8 {[%emt 0:00:00]} 13. Nb5 {[%emt 0:18:03]} Qb6 {[%emt 0:00:00]} 14. Bxb4 {[%emt 0:00:49]} Nf4 {[%emt 0:00:00]} 15. Qd2 {[%emt 1:00:05]} Qxb5 {[%emt 0:00:00]} 16. Qxf4 {[%emt 0:00:00]} Qxb4 {[%emt 0:00:00]} 17. Rd6 {[%emt 0:00:00]} a5 {[%emt 0:00:00]} 18. Rc4 {[%emt 0:00:00]} Qb5 {[%emt 0:00:00]} 19. e5 {[%emt 0:00:00]} f6 {[%emt 0:00:00]} 20. exf6 {[%emt 0:00:00]} Rf8 {[%emt 0:00:00]} 21. Qg3 {[%emt 0:00:00]} Rxf6 {[%emt 0:00:09]} 22. Rg4 {[%emt 0:00:00]} g6 {[%emt 0:00:55]} 23. Qh4 {[%emt 0:00:00]} Rf7 {[%emt 0:04:22]} 24. Ng5 {[%emt 0:00:00]} Qe5 {[%emt 0:00:22]} 25. Rd1 {[%emt 0:00:00]} Re7 {[%emt 0:01:04]} 26. Bc2 {[%emt 0:00:00]} Qf6 {[%emt 0:01:53]} 27. Qg3 {[%emt 0:00:00]} Rg7 {[%emt 0:00:35]} 28. Rf4 {[%emt 0:00:00]} Qe5 {[%emt 0:00:34]} 29. Qf3 {[%emt 0:01:31]} Re7 {[%emt 0:00:28]} 30. Rf8+ {[%emt 0:00:21]} Kg7 {[%emt 0:01:08]} 31. Rf7+ {[%emt 0:00:22]} Rxf7 {[%emt 0:00:00]} 32. Qxf7+ {[%emt 0:00:05]} Kh6 {[%emt 0:00:00]} 33. Qxh7+ {[%emt 0:01:10]} Kxg5 {[%emt 0:01:30]} 34. Qxg6+ {[%emt 0:00:02]} Kh4 {[%emt 0:00:00]} 35. g3+ {[%emt 0:00:38]} Kh3 {[%emt 0:00:00]} 36. Bd3 {[%emt 0:00:41]} 1-0

[Event "XVI Memorial Lezcano Montalvo 2024"]
[Site "Gran Canaria"]
[Date "2024.03.29"]
[Round "7.22"]
[White "Mendez Acosta, Alexander Jesus"]
[Black "de Leon Navarro, Claudio"]
[Result "1/2-1/2"]
[ECO "A25"]
[WhiteElo "2025"]
[BlackElo "1931"]
[Annotator "NA RC"]
[PlyCount "62"]
[EventDate "2024.03.23"]
[EventType "swiss"]
[EventCountry "ESP"]
[SourceTitle "playchess.com"]
[Source "ChessBase"]
[SourceQuality "1"]
[TimeControl "5400+30"]

1. c4 {[%emt 0:00:15]} e5 {[%emt 0:00:29]} 2. Nc3 {[%emt 0:00:13]} Nc6 {[%emt 0:00:30]} 3. g3 {[%emt 0:00:41]} Bc5 {[%emt 0:01:38]} 4. Bg2 {[%emt 0:01:06]} a6 {[%emt 0:00:40]} 5. e3 {[%emt 0:01:56]} Ba7 {[%emt 0:00:41]} 6. Nge2 {[%emt 0:01:03]} d6 {[%emt 0:00:49]} 7. d4 {[%emt 0:01:35]} h5 {[%emt 0:02:58]} 8. h3 {[%emt 0:03:30]} f5 {[%emt 0:08:13]} 9. h4 {[%emt 0:09:47]} Nh6 {[%emt 0:02:31]} 10. Nd5 {[%emt 0:21:28]} Ne7 {[%emt 0:06:04]} 11. dxe5 {[%emt 0:06:03]} dxe5 {[%emt 0:02:05]} 12. Nxe7 {[%emt 0:00:22]} Qxd1+ {[%emt 0:06:51]} 13. Kxd1 {[%emt 0:00:24]} Kxe7 {[%emt 0:00:14]} 14. Bd2 {[%emt 0:02:06]} Ng4 {[%emt 0:02:14]} 15. Ke1 {[%emt 0:03:25]} c6 {[%emt 0:01:21]} 16. b4 {[%emt 0:03:11]} Bb6 {[%emt 0:06:22]} 17. c5 {[%emt 0:04:05]} Bc7 {[%emt 0:01:13]} 18. f3 {[%emt 0:00:46]} Nf6 {[%emt 0:01:39]} 19. Kf2 {[%emt 0:04:19]} Rd8 {[%emt 0:06:19]} 20. Rhd1 {[%emt 0:00:40]} a5 {[%emt 0:09:21]} 21. a3 {[%emt 0:00:54]} axb4 {[%emt 0:10:02]} 22. Bxb4 {[%emt 0:00:07]} Rxd1 {[%emt 0:00:55]} 23. Rxd1 {[%emt 0:00:08]} Ba5 {[%emt 0:04:08]} 24. Nc3 {[%emt 0:01:07]} Bxb4 {[%emt 0:02:48]} 25. axb4 {[%emt 0:00:08]} Ra3 {[%emt 0:00:48]} 26. Rd3 {[%emt 0:05:57]} Ke8 {[%emt 0:02:45]} 27. Ke2 {[%emt 0:00:29]} Be6 {[%emt 0:04:34]} 28. Rd6 {[%emt 0:13:19]} Bc4+ {[%emt 0:16:18]} 29. Kd2 Rb3 30. Kc2 Rxb4 {[%emt 0:01:00]} 31. Bh3 Nd5 {[%emt 0:00:30]} 1/2-1/2

[Event "XVI Memorial Lezcano Montalvo 2024"]
[Site "Gran Canaria"]
[Date "2024.03.29"]
[Round "7.23"]
[White "Bergero, Simone"]
[Black "Quiceno Ramirez, Edwin Alejandro"]
[Result "1-0"]
[ECO "D00"]
[WhiteElo "2022"]
[BlackElo "1888"]
[Annotator "RC"]
[PlyCount "105"]
[EventDate "2024.03.23"]
[EventType "swiss"]
[EventCountry "ESP"]
[SourceTitle "playchess.com"]
[Source "ChessBase"]
[SourceQuality "1"]
[TimeControl "5400+30"]

1. d4 {[%emt 0:00:06]} d5 {[%emt 0:00:06]} 2. Bf4 {[%emt 0:00:04]} Nf6 {[%emt 0:00:09]} 3. Nc3 {[%emt 0:00:04]} e6 {[%emt 0:01:18]} 4. Nb5 {[%emt 0:00:31]} Na6 {[%emt 0:00:26]} 5. e3 {[%emt 0:00:04]} c6 {[%emt 0:00:12]} 6. Nc3 {[%emt 0:00:04]} Nc7 {[%emt 0:00:36]} 7. Nf3 {[%emt 0:00:04]} Bd6 {[%emt 0:00:05]} 8. Ne5 {[%emt 0:00:03]} Bb4 {[%emt 0:01:02]} 9. Bd3 {[%emt 0:00:20]} Ne4 {[%emt 0:02:29]} 10. Bxe4 {[%emt 0:00:32]} dxe4 {[%emt 0:00:08]} 11. Qg4 {[%emt 0:10:46]} O-O {[%emt 0:09:21]} 12. Qg3 {[%emt 0:18:53]} Nd5 {[%emt 0:12:02]} 13. O-O {[%emt 0:02:21]} Bxc3 {[%emt 0:06:55]} 14. bxc3 {[%emt 0:00:16]} Nxc3 {[%emt 0:00:12]} 15. Rfe1 {[%emt 0:02:37]} f6 {[%emt 0:03:43]} 16. Nc4 {[%emt 0:01:31]} Qd5 {[%emt 0:06:00]} 17. Bh6 {[%emt 0:05:47]} Rf7 {[%emt 0:00:54]} 18. Nd6 {[%emt 0:00:06]} Re7 {[%emt 0:18:45]} 19. Ne8 {[%emt 0:00:20]} Kf7 {[%emt 0:00:01]} 20. Nc7 {[%emt 0:02:45]} Rxc7 {[%emt 0:06:22]} 21. Qxg7+ {[%emt 0:01:04]} Ke8 {[%emt 0:00:02]} 22. Qxc7 {[%emt 0:01:01]} Qd7 {[%emt 0:00:44]} 23. Qa5 {[%emt 0:01:58]} Nd5 {[%emt 0:00:22]} 24. c4 {[%emt 0:00:10]} b6 {[%emt 0:00:01]} 25. Qd2 {[%emt 0:02:20]} Ne7 {[%emt 0:00:09]} 26. Qc2 {[%emt 0:00:36]} Ng8 {[%emt 0:04:32]} 27. Bf4 {[%emt 0:01:03]} f5 {[%emt 0:00:02]} 28. a4 {[%emt 0:00:18]} Ba6 {[%emt 0:01:25]} 29. Red1 {[%emt 0:04:37]} Rc8 {[%emt 0:00:53]} 30. Qa2 {[%emt 0:01:35]} Qf7 {[%emt 0:05:14]} 31. d5 {[%emt 0:10:35]} cxd5 {[%emt 0:02:07]} 32. cxd5 {[%emt 0:02:30]} Bc4 {[%emt 0:00:07]} 33. dxe6 {[%emt 0:00:05]} Qxe6 {[%emt 0:00:01]} 34. Qb2 {[%emt 0:00:14]} Rc6 {[%emt 0:05:43]} 35. Rac1 {[%emt 0:03:50]} Ne7 {[%emt 0:02:21]} 36. Qh8+ {[%emt 0:01:23]} Qg8 {[%emt 0:00:38]} 37. Qd4 {[%emt 0:01:41]} Qd5 {[%emt 0:02:57]} 38. Qh8+ {[%emt 0:02:59]} Qg8 {[%emt 0:00:07]} 39. Qxg8+ {[%emt 0:00:40]} Nxg8 {[%emt 0:01:44]} 40. Rd4 {[%emt 0:02:12]} Bd5 {[%emt 0:00:52]} 41. Rcd1 {[%emt 0:01:19]} Nf6 {[%emt 0:01:08]} 42. Bg5 {[%emt 0:00:08]} Bb3 {[%emt 0:00:14]} 43. Rd8+ {[%emt 0:05:31]} Kf7 {[%emt 0:00:18]} 44. R8d6 {[%emt 0:00:04]} Bxd1 {[%emt 0:01:15]} 45. Rxc6 {[%emt 0:00:04]} Ne8 {[%emt 0:00:19]} 46. Rh6 {[%emt 0:00:56]} Kg7 {[%emt 0:01:04]} 47. Re6 {[%emt 0:00:15]} Bxa4 {[%emt 0:00:15]} 48. Re7+ {[%emt 0:00:10]} Kg6 {[%emt 0:00:48]} 49. Rxa7 {[%emt 0:02:04]} Bb3 {[%emt 0:01:03]} 50. Bf4 {[%emt 0:01:34]} Bc4 {[%emt 0:00:26]} 51. Rb7 {[%emt 0:00:30]} b5 {[%emt 0:00:10]} 52. Be5 {[%emt 0:00:03]} Be2 {[%emt 0:02:25]} 53. Re7 {[%emt 0:00:16]} 1-0

[Event "XVI Memorial Lezcano Montalvo 2024"]
[Site "Gran Canaria"]
[Date "2024.03.29"]
[Round "7.24"]
[White "Fernandez Manrique, Agustin"]
[Black "Broeder, Hans-Gert"]
[Result "1-0"]
[ECO "D15"]
[WhiteElo "2017"]
[BlackElo "1860"]
[Annotator "NA RC"]
[PlyCount "43"]
[EventDate "2024.03.23"]
[EventType "swiss"]
[EventCountry "ESP"]
[SourceTitle "playchess.com"]
[Source "ChessBase"]
[SourceQuality "1"]
[TimeControl "5400+30"]

1. d4 {[%emt 0:00:30]} d5 {[%emt 0:00:43]} 2. Nf3 {[%emt 0:00:00]} Nf6 {[%emt 0:00:02]} 3. c4 {[%emt 0:00:26]} c6 {[%emt 0:00:01]} 4. Qb3 {[%emt 0:00:16]} Qb6 {[%emt 0:01:44]} 5. Nc3 {[%emt 0:01:39]} Qxb3 {[%emt 0:03:00]} 6. axb3 {[%emt 0:00:09]} Na6 {[%emt 0:00:11]} 7. e3 {[%emt 0:08:56]} Bf5 {[%emt 0:05:10]} 8. cxd5 {[%emt 0:10:04]} Nb4 {[%emt 0:02:16]} 9. Ra4 {[%emt 0:01:34]} Nbxd5 {[%emt 0:05:28]} 10. Ne5 {[%emt 0:06:07]} Bc2 {[%emt 0:06:48]} 11. Bc4 {[%emt 0:06:24]} e6 {[%emt 0:05:13]} 12. Kd2 {[%emt 0:06:18]} Bf5 {[%emt 0:06:56]} 13. Ra1 {[%emt 0:05:49]} Bb4 {[%emt 0:11:57]} 14. f3 {[%emt 0:00:48]} Ne7 {[%emt 0:03:50]} 15. e4 {[%emt 0:05:37]} Bg6 {[%emt 0:00:02]} 16. Kc2 {[%emt 0:00:38]} b5 {[%emt 0:10:50]} 17. Be2 {[%emt 0:05:40]} O-O {[%emt 0:02:28]} 18. Ra6 {[%emt 0:11:19]} Rfc8 {[%emt 0:08:05]} 19. Na2 {[%emt 0:00:22]} c5 {[%emt 0:03:48]} 20. Kb1 {[%emt 0:00:15]} Ned5 {[%emt 0:03:24]} 21. Nxg6 {[%emt 0:01:40]} Ne7 {[%emt 0:19:04]} 22. Ne5 {[%emt 0:26:59]} 1-0

[Event "XVI Memorial Lezcano Montalvo 2024"]
[Site "Gran Canaria"]
[Date "2024.03.29"]
[Round "7.25"]
[White "Garbezza, Davide"]
[Black "Blanco Garcia Bajo, David"]
[Result "1-0"]
[ECO "E18"]
[WhiteElo "1888"]
[BlackElo "2004"]
[Annotator "RC"]
[PlyCount "103"]
[EventDate "2024.03.23"]
[EventType "swiss"]
[EventCountry "ESP"]
[SourceTitle "playchess.com"]
[Source "ChessBase"]
[SourceQuality "1"]
[TimeControl "5400+30"]

1. d4 {[%emt 0:00:05]} e6 {[%emt 0:00:07]} 2. c4 {[%emt 0:00:10]} Nf6 {[%emt 0:00:06]} 3. Nf3 {[%emt 0:00:08]} b6 {[%emt 0:00:07]} 4. g3 {[%emt 0:00:10]} Bb7 {[%emt 0:00:07]} 5. Bg2 {[%emt 0:00:07]} Be7 {[%emt 0:00:11]} 6. O-O {[%emt 0:00:26]} O-O {[%emt 0:00:06]} 7. Nc3 {[%emt 0:00:11]} Ne4 {[%emt 0:00:10]} 8. Bd2 {[%emt 0:00:12]} d6 {[%emt 0:05:23]} 9. d5 {[%emt 0:05:25]} Nxc3 {[%emt 0:05:02]} 10. Bxc3 {[%emt 0:00:13]} e5 {[%emt 0:01:20]} 11. b4 {[%emt 0:13:45]} Nd7 {[%emt 0:07:22]} 12. a4 {[%emt 0:05:37]} c5 {[%emt 0:19:13]} 13. dxc6 {[%emt 0:14:28]} Bxc6 {[%emt 0:00:04]} 14. Qb3 {[%emt 0:03:05]} a5 {[%emt 0:06:55]} 15. Rfd1 {[%emt 0:02:11]} Qc7 {[%emt 0:01:21]} 16. Nd2 {[%emt 0:07:02]} Bxg2 {[%emt 0:02:44]} 17. Kxg2 {[%emt 0:00:02]} Kh8 {[%emt 0:06:49]} 18. Nf1 {[%emt 0:04:33]} f5 {[%emt 0:14:46]} 19. Ne3 {[%emt 0:02:48]} Nf6 {[%emt 0:00:07]} 20. Nd5 {[%emt 0:11:12]} Nxd5 {[%emt 0:04:15]} 21. cxd5 {[%emt 0:00:37]} Rfc8 {[%emt 0:03:21]} 22. Rdc1 {[%emt 0:02:08]} axb4 {[%emt 0:09:24]} 23. Bxe5 {[%emt 0:02:24]} Qb7 {[%emt 0:03:12]} 24. Rxc8+ {[%emt 0:06:54]} Rxc8 {[%emt 0:00:58]} 25. Bd4 {[%emt 0:00:11]} Qa6 {[%emt 0:01:49]} 26. Qxb4 {[%emt 0:02:27]} Bf8 {[%emt 0:02:55]} 27. Qb5 {[%emt 0:03:12]} Qa5 {[%emt 0:02:08]} 28. Bxb6 {[%emt 0:03:42]} Qc3 {[%emt 0:01:29]} 29. Rb1 {[%emt 0:00:42]} Qe5 {[%emt 0:01:17]} 30. Qd3 {[%emt 0:03:20]} Rc3 {[%emt 0:01:09]} 31. f4 {[%emt 0:01:44]} Qe8 {[%emt 0:01:28]} 32. Qxc3 {[%emt 0:02:54]} Qe4+ {[%emt 0:00:02]} 33. Kf2 {[%emt 0:00:36]} Qxb1 {[%emt 0:00:01]} 34. a5 {[%emt 0:00:20]} Qh1 {[%emt 0:00:51]} 35. Qf3 {[%emt 0:01:17]} Qb1 {[%emt 0:00:34]} 36. Kg2 {[%emt 0:01:12]} Qa2 {[%emt 0:01:04]} 37. Qd3 {[%emt 0:00:17]} Be7 {[%emt 0:00:29]} 38. Qb5 {[%emt 0:01:14]} Kg8 {[%emt 0:00:25]} 39. Qe8+ {[%emt 0:00:52]} Bf8 {[%emt 0:00:02]} 40. Qe6+ {[%emt 0:00:13]} Kh8 {[%emt 0:00:01]} 41. Bc7 {[%emt 0:01:23]} h6 {[%emt 0:00:30]} 42. Kh3 {[%emt 0:00:35]} Qb1 {[%emt 0:00:50]} 43. Qf7 {[%emt 0:01:09]} Qf1+ {[%emt 0:01:04]} 44. Kh4 {[%emt 0:00:00]} Qxe2 {[%emt 0:00:40]} 45. Qxf8+ {[%emt 0:00:07]} Kh7 {[%emt 0:00:07]} 46. Qxf5+ {[%emt 0:00:02]} Kh8 {[%emt 0:00:23]} 47. h3 {[%emt 0:01:40]} Qe7+ {[%emt 0:00:23]} 48. Kg4 {[%emt 0:00:20]} Qe2+ {[%emt 0:00:12]} 49. Kh4 {[%emt 0:00:08]} Qe7+ {[%emt 0:00:06]} 50. Kh5 {[%emt 0:00:35]} Qxc7 {[%emt 0:00:49]} 51. Kg6 {[%emt 0:00:20]} Qd8 {[%emt 0:01:04]} 52. Qf7 {[%emt 0:02:05]} 1-0

[Event "XVI Memorial Lezcano Montalvo 2024"]
[Site "Gran Canaria"]
[Date "2024.03.29"]
[Round "7.27"]
[White "Pleschke, Julius Jonas"]
[Black "Garcia Rodriguez, Adriana"]
[Result "1-0"]
[ECO "B13"]
[WhiteElo "1993"]
[BlackElo "1854"]
[Annotator "RC"]
[PlyCount "107"]
[EventDate "2024.03.23"]
[EventType "swiss"]
[EventCountry "ESP"]
[SourceTitle "playchess.com"]
[Source "ChessBase"]
[SourceQuality "1"]
[TimeControl "5400+30"]

1. Nf3 {[%emt 0:00:07]} d5 {[%emt 0:00:03]} 2. d4 {[%emt 0:00:07]} Nf6 {[%emt 1:31:27]} 3. Bf4 {[%emt 0:00:37]} e6 {[%emt 0:00:00]} 4. e3 {[%emt 0:00:08]} c5 {[%emt 0:00:00]} 5. c3 {[%emt 0:00:49]} cxd4 {[%emt 0:00:00]} 6. exd4 {[%emt 0:00:35]} Nc6 {[%emt 0:00:00]} 7. Bd3 {[%emt 0:04:55]} Be7 {[%emt 0:00:00]} 8. h3 {[%emt 0:01:52]} Qb6 {[%emt 0:00:00]} 9. Qe2 {[%emt 0:04:51]} h6 {[%emt 0:00:00]} 10. O-O {[%emt 0:00:52]} O-O {[%emt 0:00:00]} 11. a4 {[%emt 0:03:17]} Bd7 {[%emt 0:00:00]} 12. b4 {[%emt 0:18:23]} a6 {[%emt 0:00:00]} 13. Nbd2 {[%emt 0:05:20]} Rfc8 {[%emt 0:00:00]} 14. Rfc1 {[%emt 0:07:15]} Qd8 {[%emt 0:00:00]} 15. Nb3 {[%emt 0:04:07]} Qe8 {[%emt 0:00:00]} 16. Nc5 {[%emt 0:10:38]} Bxc5 {[%emt 0:00:00]} 17. bxc5 {[%emt 0:02:55]} Na5 {[%emt 0:00:00]} 18. Qa2 {[%emt 0:03:45]} Nc4 {[%emt 0:08:00]} 19. Bxc4 {[%emt 0:02:02]} dxc4 {[%emt 0:00:00]} 20. Nd2 {[%emt 0:02:47]} Nd5 {[%emt 0:00:00]} 21. Bh2 {[%emt 0:01:00]} b5 {[%emt 0:00:00]} 22. cxb6 {[%emt 0:01:52]} Nxb6 {[%emt 0:00:00]} 23. a5 {[%emt 0:00:14]} Nd5 {[%emt 0:00:00]} 24. Nxc4 {[%emt 0:03:54]} Bb5 {[%emt 0:00:00]} 25. Nd6 {[%emt 0:02:33]} Nxc3 {[%emt 0:00:00]} 26. Rxc3 {[%emt 0:00:19]} Rxc3 {[%emt 0:00:00]} 27. Nxe8 {[%emt 0:00:08]} Rxe8 {[%emt 0:00:00]} 28. Bf4 {[%emt 0:03:04]} Rec8 {[%emt 0:00:00]} 29. Qb2 {[%emt 0:02:07]} Rc2 {[%emt 0:00:00]} 30. Qa3 {[%emt 0:02:02]} R2c4 {[%emt 0:00:00]} 31. Rc1 {[%emt 0:02:35]} Rxc1+ {[%emt 0:00:00]} 32. Bxc1 {[%emt 0:00:07]} Rc4 {[%emt 0:00:00]} 33. Be3 {[%emt 0:00:19]} Ra4 {[%emt 0:00:00]} 34. Qc3 {[%emt 0:00:07]} Rc4 {[%emt 0:00:00]} 35. Qd2 {[%emt 0:00:20]} Ra4 {[%emt 0:00:00]} 36. Kh2 {[%emt 0:00:18]} Kh7 {[%emt 0:00:00]} 37. Kg3 {[%emt 0:00:33]} f5 {[%emt 0:00:00]} 38. Kf4 {[%emt 0:02:30]} Bc4 {[%emt 0:00:00]} 39. Ke5 {[%emt 0:01:07]} Bd5 {[%emt 0:00:00]} 40. g4 {[%emt 0:01:13]} Ra2 {[%emt 0:00:00]} 41. Qe1 {[%emt 0:00:31]} fxg4 {[%emt 0:00:00]} 42. hxg4 {[%emt 0:00:16]} Kg8 {[%emt 0:00:00]} 43. Qb4 {[%emt 0:02:20]} Kh7 {[%emt 0:00:00]} 44. Kd6 {[%emt 0:01:56]} Ra1 {[%emt 0:00:00]} 45. g5 {[%emt 0:01:25]} h5 {[%emt 0:00:00]} 46. Qb2 {[%emt 0:00:28]} Rxa5 {[%emt 0:00:00]} 47. Qc2+ {[%emt 0:00:17]} Kg8 {[%emt 0:00:00]} 48. g6 {[%emt 0:00:12]} Bb7 {[%emt 0:00:00]} 49. Qc7 {[%emt 0:00:48]} Rf5 {[%emt 0:00:00]} 50. Qxb7 {[%emt 0:00:30]} a5 {[%emt 0:00:00]} 51. Qc8+ {[%emt 0:00:32]} Rf8 {[%emt 0:00:00]} 52. Qxe6+ {[%emt 0:00:17]} Kh8 {[%emt 0:00:00]} 53. Qh3 {[%emt 0:00:32]} Rf6+ {[%emt 0:00:00]} 54. Ke7 {[%emt 0:00:56]} 1-0

[Event "XVI Memorial Lezcano Montalvo 2024"]
[Site "Gran Canaria"]
[Date "2024.03.29"]
[Round "7.28"]
[White "Segura Marsa, Andres"]
[Black "Sanchez Montesdeoca, Isaac"]
[Result "1/2-1/2"]
[ECO "A36"]
[WhiteElo "1987"]
[BlackElo "1832"]
[Annotator "NA RC"]
[PlyCount "72"]
[EventDate "2024.03.23"]
[EventType "swiss"]
[EventCountry "ESP"]
[SourceTitle "playchess.com"]
[Source "ChessBase"]
[SourceQuality "1"]
[TimeControl "5400+30"]

1. c4 {[%emt 0:00:04]} c5 {[%emt 0:00:06]} 2. Nc3 {[%emt 0:00:09]} Nf6 {[%emt 0:00:06]} 3. g3 {[%emt 0:00:16]} b6 {[%emt 0:00:07]} 4. Bg2 {[%emt 0:00:17]} Nc6 {[%emt 0:00:07]} 5. e4 {[%emt 0:00:23]} e5 {[%emt 0:04:33]} 6. Nge2 {[%emt 0:00:35]} d6 {[%emt 0:05:50]} 7. d3 {[%emt 0:02:11]} Bg4 {[%emt 0:00:34]} 8. f3 {[%emt 0:00:09]} Bd7 {[%emt 0:00:29]} 9. O-O {[%emt 0:00:18]} Qc8 {[%emt 0:02:11]} 10. Bg5 {[%emt 0:05:49]} Ne7 {[%emt 0:08:04]} 11. f4 {[%emt 0:10:46]} Ng4 {[%emt 0:02:00]} 12. Bxe7 {[%emt 0:00:33]} Bxe7 {[%emt 0:06:04]} 13. Qd2 {[%emt 0:00:30]} O-O {[%emt 0:07:16]} 14. Nd5 {[%emt 0:02:10]} Bd8 {[%emt 0:00:09]} 15. f5 {[%emt 0:12:05]} Rb8 {[%emt 0:04:02]} 16. Rf3 {[%emt 0:04:14]} Rb7 {[%emt 0:02:00]} 17. Raf1 {[%emt 0:02:45]} Bc6 {[%emt 0:02:32]} 18. Nec3 {[%emt 0:07:48]} Nf6 {[%emt 0:00:36]} 19. Ne3 {[%emt 0:02:00]} a6 {[%emt 0:04:51]} 20. g4 {[%emt 0:06:04]} b5 {[%emt 0:01:01]} 21. Rh3 {[%emt 0:02:32]} b4 {[%emt 0:05:33]} 22. Ne2 {[%emt 0:01:42]} Bd7 {[%emt 0:04:56]} 23. g5 {[%emt 0:04:32]} Ne8 {[%emt 0:00:08]} 24. Rg3 {[%emt 0:01:12]} Kh8 {[%emt 0:02:03]} 25. h4 {[%emt 0:02:51]} a5 {[%emt 0:02:31]} 26. Nd5 {[%emt 0:02:26]} Nc7 {[%emt 0:00:35]} 27. f6 {[%emt 0:02:27]} Nxd5 {[%emt 0:00:45]} 28. fxg7+ {[%emt 0:00:35]} Kxg7 {[%emt 0:00:00]} 29. exd5 {[%emt 0:00:06]} Bg4 {[%emt 0:05:32]} 30. Kh2 {[%emt 0:02:54]} f5 {[%emt 0:00:47]} 31. gxf6+ {[%emt 0:02:17]} Rxf6 {[%emt 0:02:38]} 32. Rxf6 {[%emt 0:04:48]} Bxf6 {[%emt 0:00:23]} 33. Bh3 {[%emt 0:02:19]} h5 {[%emt 0:00:33]} 34. Bxg4 {[%emt 0:00:23]} hxg4 {[%emt 0:00:10]} 35. h5 {[%emt 0:01:36]} Qf5 {[%emt 0:01:39]} 36. h6+ {[%emt 0:00:57]} Kh8 {[%emt 0:02:04]} 1/2-1/2